fUSD/lending_fUSD_20250313
["ID","MTS","AMOUNT","RATE_DAILY","PERIOD"]
[356112388,1741909933676,-1652.9,0.00025573,3]
[356112389,1741909933686,-2343.56,0.00025573,3]
[356112390,1741909933695,-534.22,0.00025573,3]
[356112391,1741909933705,-855.84,0.00025573,3]
[356112392,1741909933715,-2980.86,0.00025573,3]
[356112393,1741909933725,-1751.29,0.00025573,3]
[356112394,1741909933734,-521.41,0.00025573,3]
[356112395,1741909933744,-1817.04,0.00025573,3]
[356112396,1741909933754,-1529.79,0.00025573,3]
[356112397,1741909933764,-626.51,0.00025573,3]
[356112398,1741909933777,-1531.97,0.00025573,3]
[356112399,1741909933787,-1836.79,0.00025573,3]
[356112400,1741909933798,-647.08,0.00025573,3]
[356112401,1741909933819,-767.63,0.00025573,3]
[356112402,1741909933829,-2784.94,0.00025573,3]
[356112403,1741909933839,-972.39,0.00025573,3]
[356112404,1741909933849,-950.08,0.00025573,3]
[356112405,1741909933860,-1153.097042,0.00025573,3]
[356112406,1741909933870,-663.57,0.00025573,3]
[356112407,1741909933880,-638.89,0.00025573,3]
[356112408,1741909933890,-1612.27,0.00025573,3]
[356112409,1741909933900,-366.121728,0.00025573,3]
[356112410,1741909933910,-1194.86,0.00025573,3]
[356112411,1741909933920,-866.68,0.00025573,3]
[356112412,1741909933931,-542.19,0.00025573,3]
[356112413,1741909933941,-1909.43,0.00025573,3]
[356112414,1741909933951,-632.82,0.00025573,3]
[356112415,1741909933962,-503.16,0.00025573,3]
[356112416,1741909933972,-957.65,0.00025573,3]
[356112417,1741909933982,-686.97,0.00025573,3]
[356112418,1741909933992,-1718.94,0.00025573,3]
[356112419,1741909934003,-593.31,0.00025573,3]
[356112420,1741909934013,-1023.55,0.00025573,3]
[356112421,1741909934023,-1537.99,0.00025573,3]
[356112422,1741909934033,-705.12,0.00025573,3]
[356112423,1741909934043,-2081.77,0.00025573,3]
[356112424,1741909934053,-595.3,0.00025573,3]
[356112425,1741909934064,-500.0,0.00025573,3]
[356112426,1741909934074,-581.8,0.00025573,3]
[356112427,1741909934083,-2182.31,0.00025573,3]
[356112428,1741909934093,-1551.28,0.00025573,3]
[356112429,1741909934103,-1223.35,0.00025573,3]
[356112430,1741909934113,-705.21,0.00025573,3]
[356112431,1741909934123,-500.0,0.00025573,3]
[356112432,1741909934133,-513.62,0.00025573,3]
[356112433,1741909934143,-575.64,0.00025573,3]
[356112434,1741909934153,-2382.43,0.00025573,3]
[356112435,1741909934163,-1703.64,0.00025573,3]
[356112436,1741909934172,-500.0,0.00025573,3]
[356112437,1741909934183,-500.0,0.00025573,3]
[356112438,1741909934193,-1670.95,0.00025573,3]
[356112439,1741909934203,-1633.72,0.00025573,3]
[356112440,1741909934213,-3566.18,0.00025573,2]
[356112441,1741909934223,-2647.01,0.00025573,3]
[356112442,1741909934233,-694.85,0.00025573,3]
[356112443,1741909934243,-1632.96,0.00025573,3]
[356112444,1741909934252,-1051.26,0.00025573,3]
[356112445,1741909934262,-703.55,0.00025573,3]
[356112446,1741909934273,-1726.02,0.00025573,3]
[356112447,1741909934283,-1847.97,0.00025573,3]
[356112448,1741909934294,-1122.02,0.00025573,3]
[356112449,1741909934303,-563.8,0.00025573,3]
[356112450,1741909934314,-1030.95,0.00025573,3]
[356112451,1741909934324,-547.84,0.00025573,3]
[356112452,1741909934334,-732.74,0.00025573,3]
[356112453,1741909934344,-685.17,0.00025573,3]
[356112454,1741909934353,-636.55,0.00025573,3]
[356112455,1741909934363,-475.9,0.00025573,3]
[356112456,1741909934373,-500.0,0.00025573,3]
[356112457,1741909934382,-666.39,0.00025573,3]
[356112458,1741909934392,-1322.8,0.00025574,3]
[356112459,1741909934402,-500.0,0.00025574,3]
[356112460,1741909934412,-2009.2,0.00025574,3]
[356112461,1741909934422,-1045.89,0.00025574,3]
[356112462,1741909934431,-516.89,0.00025574,3]
[356112463,1741909934442,-520.87,0.00025574,3]
[356112464,1741909934454,-549.11,0.00025574,3]
[356112465,1741909934595,-500.0,0.00025574,2]
[356112466,1741909934605,-1886.33,0.00025574,3]
[356112467,1741909934615,-1603.3,0.00025574,3]
[356112468,1741909934625,-507.55,0.00025574,3]
[356112469,1741909934635,-500.0,0.00025574,3]
[356112470,1741909934644,-1799.26,0.00025574,3]
[356112471,1741909934654,-1038.47,0.00025574,3]
[356112472,1741909934663,-500.0,0.00025574,3]
[356112473,1741909934673,-1529.19,0.00025574,3]
[356112474,1741909934683,-1146.19,0.00025574,3]
[356112475,1741909934692,-1230.07,0.00025574,3]
[356112476,1741909934701,-828.77,0.00025574,3]
[356112477,1741909934712,-766.89,0.00025574,3]
[356112478,1741909934722,-974.37,0.00025574,3]
[356112479,1741909934732,-878.52,0.00025574,3]
[356112480,1741909934741,-581.67,0.00025574,3]
[356112481,1741909934750,-2023.2,0.00025574,3]
[356112482,1741909934760,-2022.67,0.00025574,3]
[356112483,1741909934769,-1071.52,0.00025574,3]
[356112484,1741909934779,-1318.79,0.00025574,3]
[356112485,1741909934790,-817.82,0.00025574,3]
[356112486,1741909934800,-1858.28,0.00025574,3]
[356112487,1741909934810,-1341.33,0.00025574,3]
[356112488,1741909934820,-1345.3,0.00025574,3]
[356112489,1741909934830,-1005.07,0.00025574,3]
[356112490,1741909934839,-2009.8,0.00025574,3]
[356112491,1741909934848,-500.0,0.00025574,3]
[356112492,1741909934857,-247.35204492,0.00025574,3]
[356112493,1741909934867,-3283.37,0.00025574,3]
[356112494,1741909934877,-647.14,0.00025574,3]
[356112495,1741909934886,-1389.09,0.00025574,3]
[356112496,1741909934896,-558.82,0.00025574,3]
[356112497,1741909934906,-535.09,0.00025574,3]
[356112498,1741909934915,-1705.22,0.00025574,3]
[356112499,1741909934925,-573.45,0.00025574,3]
[356112500,1741909934934,-4252.22,0.00025574,3]
[356112501,1741909934943,-957.24,0.00025574,3]
[356112502,1741909934953,-813.96,0.00025574,3]
[356112503,1741909934963,-500.0,0.00025574,3]
[356112504,1741909934973,-1214.54,0.00025574,3]
[356112505,1741909934982,-1011.7,0.00025574,3]
[356112506,1741909934992,-509.81,0.00025574,3]
[356112507,1741909935002,-1624.15,0.00025574,3]
[356112508,1741909935012,-1714.12,0.00025574,3]
[356112509,1741909935021,-1453.97,0.00025574,3]
[356112510,1741909935033,-511.82,0.00025574,3]
[356112511,1741909935043,-732.6,0.00025574,3]
[356112512,1741909935052,-500.0,0.00025574,3]
[356112513,1741909935062,-1621.13,0.00025574,3]
[356112514,1741909935072,-684.37,0.00025574,3]
[356112515,1741909935081,-500.0,0.00025574,3]
[356112516,1741909935091,-500.0,0.00025574,3]
[356112517,1741909935100,-568.39,0.00025574,3]
[356112518,1741909935110,-1602.7,0.00025574,3]
[356112519,1741909935119,-500.0,0.00025574,3]
[356112520,1741909935128,-728.56,0.00025574,3]
[356112521,1741909935137,-500.0,0.00025574,3]
[356112522,1741909935147,-1144.38,0.00025574,3]
[356112523,1741909935157,-1019.22,0.00025574,3]
[356112524,1741909935167,-501.97,0.00025574,3]
[356112525,1741909935176,-500.0,0.00025574,3]
[356112526,1741909935186,-500.0,0.00025574,3]
[356112527,1741909935196,-1182.53,0.00025574,3]
[356112528,1741909935206,-1076.88,0.00025574,3]
[356112529,1741909935216,-1821.49,0.00025575,3]
[356112530,1741909935226,-500.0,0.00025575,3]
[356112531,1741909935236,-534.21,0.00025575,3]
[356112532,1741909935245,-721.07,0.00025575,3]
[356112533,1741909935255,-835.2,0.00025575,3]
[356112534,1741909935265,-640.39,0.00025575,3]
[356112535,1741909935277,-500.0,0.00025575,3]
[356112536,1741909935287,-1649.68,0.00025575,3]
[356112537,1741909935296,-500.0,0.00025575,3]
[356112538,1741909935306,-602.71,0.00025575,3]
[356112539,1741909935315,-500.0,0.00025575,3]
[356112540,1741909935325,-717.27,0.00025575,3]
[356112541,1741909935334,-938.73,0.00025575,3]
[356112542,1741909935343,-1058.89,0.00025575,3]
[356112543,1741909935353,-942.53,0.00025575,3]
[356112544,1741909935362,-578.57,0.00025575,3]
[356112545,1741909935372,-909.28,0.00025575,3]
[356112546,1741909935381,-618.61,0.00025575,3]
[356112547,1741909935391,-610.2,0.00025575,3]
[356112548,1741909935400,-634.9,0.00025575,3]
[356112549,1741909935409,-1597.02,0.00025575,3]
[356112550,1741909935419,-1208.71,0.00025575,3]
[356112551,1741909935428,-961.24,0.00025575,3]
[356112552,1741909935438,-552.14,0.00025575,3]
[356112553,1741909935447,-945.98,0.00025575,3]
[356112554,1741909935459,-599.05,0.00025575,3]
[356112555,1741909935469,-207.62654533,0.00025575,3]
[356112556,1741909935478,-500.0,0.00025575,3]
[356112557,1741909935488,-524.04,0.00025575,3]
[356112558,1741909935499,-1064.48,0.00025575,3]
[356112559,1741909935508,-1162.99,0.00025575,3]
[356112560,1741909935518,-1104.79,0.00025575,3]
[356112561,1741909935529,-1347.3,0.00025575,2]
[356112562,1741909935540,-1177.15,0.00025575,3]
[356112563,1741909935550,-1278.64,0.00025575,3]
[356112564,1741909935560,-1471.45,0.00025575,3]
[356112565,1741909935570,-1032.31,0.00025575,3]
[356112566,1741909935579,-1030.03,0.00025575,3]
[356112567,1741909935589,-500.0,0.00025575,3]
[356112568,1741909935598,-583.44,0.00025575,3]
[356112569,1741909935608,-531.32,0.00025575,3]
[356112570,1741909935617,-665.05,0.00025575,3]
[356112571,1741909935628,-500.0,0.00025575,3]
[356112572,1741909935637,-395.21,0.00025575,3]
[356112573,1741909935647,-1399.34,0.00025575,3]
[356112574,1741909935656,-500.0,0.00025575,3]
[356112575,1741909935666,-1162.37,0.00025575,3]
[356112576,1741909935675,-503.04,0.00025575,3]
[356112577,1741909935685,-637.46,0.00025575,3]
[356112578,1741909935695,-514.6,0.00025575,3]
[356112579,1741909935705,-500.0,0.00025575,3]
[356112580,1741909935715,-1488.89,0.00025575,3]
[356112581,1741909935724,-509.79,0.00025575,3]
[356112582,1741909935734,-1616.56,0.00025575,3]
[356112583,1741909935743,-450.80754645,0.00025575,3]
[356112584,1741909935752,-503.06,0.00025575,3]
[356112585,1741909935762,-566.59,0.00025575,3]
[356112586,1741909935772,-877.86,0.00025575,3]
[356112587,1741909935782,-1515.34,0.00025575,3]
[356112588,1741909935792,-637.9,0.00025575,3]
[356112589,1741909935802,-500.0,0.00025575,3]
[356112590,1741909935812,-1951.21,0.00025575,3]
[356112591,1741909935822,-230.8,0.00025575,3]
[356112592,1741909935832,-1319.48,0.00025575,3]
[356112593,1741909935842,-449.66829928,0.00025575,3]
[356112594,1741909935851,-500.0,0.00025575,2]
[356112595,1741909935861,-761.68,0.00025575,3]
[356112596,1741909935871,-1194.67,0.00025575,3]
[356112597,1741909935880,-1173.33,0.00025575,3]
[356112598,1741909935889,-188.66356463,0.00025575,3]
[356112599,1741909935900,-610.98,0.00025575,3]
[356112600,1741909935909,-792.15,0.00025575,3]
[356112601,1741909935919,-1894.67,0.00025575,3]
[356112602,1741909935929,-1930.42,0.00025575,3]
[356112603,1741909935938,-1350.01,0.00025575,3]
[356112604,1741909935948,-666.36,0.00025575,3]
[356112605,1741909935958,-659.78,0.00025575,3]
[356112606,1741909935967,-740.67,0.00025575,3]
[356112607,1741909935978,-1446.01,0.00025575,3]
[356112608,1741909935987,-500.0,0.00025575,3]
[356112609,1741909935997,-506.61,0.00025575,3]
[356112610,1741909936007,-1542.57,0.00025575,3]
[356112611,1741909936017,-679.28,0.00025575,3]
[356112612,1741909936028,-509.45,0.00025575,3]
[356112613,1741909936038,-528.56,0.00025575,3]
[356112614,1741909936048,-803.83,0.00025575,3]
[356112615,1741909936058,-500.0,0.00025575,3]
[356112616,1741909936068,-3776.5,0.00025575,3]
[356112617,1741909936079,-341.24,0.00025575,3]
[356112618,1741909936089,-1817.75,0.00025575,3]
[356112619,1741909936098,-938.17,0.00025575,3]
[356112620,1741909936108,-1921.94,0.00025575,3]
[356112621,1741909936118,-515.11,0.00025575,3]
[356112622,1741909936128,-519.89,0.00025575,3]
[356112623,1741909936138,-547.45,0.00025575,3]
[356112624,1741909936147,-742.8,0.00025575,3]
[356112625,1741909936157,-947.29,0.00025575,3]
[356112626,1741909936167,-1068.83,0.00025575,3]
[356112627,1741909936177,-2205.2076051,0.00025576,4]
[356112628,1741909936187,-187.02,0.0002558,2]
[356112629,1741909936197,-1771.49,0.000256,3]
[356112630,1741909936207,-1290.76,0.000256,3]
[356112631,1741909936217,-559.65,0.000256,3]
[356112632,1741909936226,-1582.8,0.000256,3]
[356112633,1741909936236,-500.0,0.000256,3]
[356112634,1741909936246,-628.37,0.000256,3]
[356112635,1741909936257,-534.48,0.000256,3]
[356112636,1741909936267,-1267.72,0.000256,3]
[356112637,1741909936279,-1652.9,0.000256,3]
[356112638,1741909936288,-2343.56,0.000256,3]
[356112639,1741909936298,-534.22,0.000256,3]
[356112640,1741909936307,-855.84,0.000256,3]
[356112641,1741909936317,-1751.29,0.000256,3]
[356112642,1741909936327,-521.41,0.000256,3]
[356112643,1741909936336,-1817.04,0.000256,3]
[356112644,1741909936347,-1529.79,0.000256,3]
[356112645,1741909936357,-626.51,0.000256,3]
[356112646,1741909936366,-1836.79,0.000256,3]
[356112647,1741909936376,-647.08,0.000256,3]
[356112648,1741909936386,-2784.94,0.000256,3]
[356112649,1741909936395,-972.39,0.000256,3]
[356112650,1741909936405,-950.08,0.000256,3]
[356112651,1741909936414,-1153.097042,0.000256,3]
[356112652,1741909936424,-663.57,0.000256,3]
[356112653,1741909936434,-366.121728,0.000256,3]
[356112654,1741909936443,-1194.86,0.000256,3]
[356112655,1741909936454,-542.19,0.000256,3]
[356112656,1741909936466,-153.80157,0.000256,3]
[356112657,1741909936476,-632.82,0.000256,3]
[356112658,1741909936486,-152.872762,0.000256,3]
[356112659,1741909936496,-1718.94,0.000256,3]
[356112660,1741909936507,-593.31,0.000256,3]
[356112661,1741909936516,-1537.99,0.000256,3]
[356112662,1741909936527,-595.3,0.000256,3]
[356112663,1741909936538,-500.0,0.000256,3]
[356112664,1741909936549,-2182.31,0.000256,3]
[356112665,1741909936560,-705.21,0.000256,3]
[356112666,1741909936569,-500.0,0.000256,3]
[356112667,1741909936580,-513.62,0.000256,3]
[356112668,1741909936590,-1703.64,0.000256,3]
[356112669,1741909936599,-500.0,0.000256,3]
[356112670,1741909936610,-3566.18,0.000256,2]
[356112671,1741909936620,-1632.96,0.000256,3]
[356112672,1741909936630,-1051.26,0.000256,3]
[356112673,1741909936640,-1030.95,0.000256,3]
[356112674,1741909936649,-732.74,0.000256,3]
[356112675,1741909936659,-636.55,0.000256,3]
[356112676,1741909936669,-500.0,0.000256,3]
[356112677,1741909936679,-666.39,0.000256,3]
[356112678,1741909936689,-3568.36,0.00025601,3]
[356112679,1741909936699,-2980.86,0.00025601,3]
[356112680,1741909936711,-1531.97,0.00025601,3]
[356112681,1741909936721,-767.63,0.00025601,3]
[356112682,1741909936732,-638.89,0.00025601,3]
[356112683,1741909936743,-1612.27,0.00025601,3]
[356112684,1741909936753,-866.68,0.00025601,3]
[356112685,1741909936764,-1909.43,0.00025601,3]
[356112686,1741909936775,-503.16,0.00025601,3]
[356112687,1741909936788,-957.65,0.00025601,3]
[356112688,1741909936799,-686.97,0.00025601,3]
[356112689,1741909936809,-1023.55,0.00025601,3]
[356112690,1741909936819,-705.12,0.00025601,3]
[356112691,1741909936830,-2081.77,0.00025601,3]
[356112692,1741909936840,-581.8,0.00025601,3]
[356112693,1741909936850,-1551.28,0.00025601,3]
[356112694,1741909936860,-1223.35,0.00025601,3]
[356112695,1741909936871,-575.64,0.00025601,3]
[356112696,1741909936882,-2382.43,0.00025601,3]
[356112697,1741909936893,-203.8,0.00025601,3]
[356112698,1741909936903,-1670.95,0.00025601,3]
[356112699,1741909936913,-1633.72,0.00025601,3]
[356112700,1741909936923,-2647.01,0.00025601,3]
[356112701,1741909936933,-694.85,0.00025601,3]
[356112702,1741909936943,-703.55,0.00025601,3]
[356112703,1741909936953,-1726.02,0.00025601,3]
[356112704,1741909936963,-1847.97,0.00025601,3]
[356112705,1741909936973,-1122.02,0.00025601,3]
[356112706,1741909936983,-547.84,0.00025601,3]
[356112707,1741909936993,-685.17,0.00025601,3]
[356112708,1741909937003,-1821.49,0.00025602,3]
[356112709,1741909937013,-203.07,0.00025602,3]
[356112710,1741909937023,-534.21,0.00025602,3]
[356112711,1741909937034,-721.07,0.00025602,3]
[356112712,1741909937044,-835.2,0.00025602,3]
[356112713,1741909937053,-640.39,0.00025602,3]
[356112714,1741909937063,-500.0,0.00025602,3]
[356112715,1741909937073,-1649.68,0.00025602,3]
[356112716,1741909937082,-489.01,0.00025602,3]
[356112717,1741909937092,-602.71,0.00025602,3]
[356112718,1741909937101,-366.29,0.00025602,3]
[356112719,1741909937111,-717.27,0.00025602,3]
[356112720,1741909937121,-938.73,0.00025602,3]
[356112721,1741909937131,-1058.89,0.00025602,3]
[356112722,1741909937140,-942.53,0.00025602,3]
[356112723,1741909937150,-578.57,0.00025602,3]
[356112724,1741909937160,-909.28,0.00025602,3]
[356112725,1741909937170,-618.61,0.00025602,3]
[356112726,1741909937180,-610.2,0.00025602,3]
[356112727,1741909937189,-1597.02,0.00025602,3]
[356112728,1741909937199,-1208.71,0.00025602,3]
[356112729,1741909937209,-961.24,0.00025602,3]
[356112730,1741909937218,-945.98,0.00025602,3]
[356112731,1741909937228,-599.05,0.00025602,3]
[356112732,1741909937238,-203.76,0.00025602,3]
[356112733,1741909937248,-1322.8,0.00025602,3]
[356112734,1741909937259,-524.04,0.00025602,3]
[356112735,1741909937269,-500.0,0.00025602,3]
[356112736,1741909937279,-1064.48,0.00025602,3]
[356112737,1741909937290,-1162.99,0.00025602,3]
[356112738,1741909937300,-2009.2,0.00025602,3]
[356112739,1741909937311,-1104.79,0.00025602,3]
[356112740,1741909937320,-1347.3,0.00025602,2]
[356112741,1741909937330,-1045.89,0.00025602,3]
[356112742,1741909937340,-1177.15,0.00025602,3]
[356112743,1741909937350,-1278.64,0.00025602,3]
[356112744,1741909937360,-1471.45,0.00025602,3]
[356112745,1741909937370,-1032.31,0.00025602,3]
[356112746,1741909937379,-516.89,0.00025602,3]
[356112747,1741909937390,-1030.03,0.00025602,3]
[356112748,1741909937399,-459.71,0.00025602,3]
[356112749,1741909937409,-583.44,0.00025602,3]
[356112750,1741909937419,-520.87,0.00025602,3]
[356112751,1741909937429,-531.32,0.00025602,3]
[356112752,1741909937440,-549.11,0.00025602,3]
[356112753,1741909937633,-665.05,0.00025602,3]
[356112754,1741909937647,-500.0,0.00025602,2]
[356112755,1741909937656,-1886.33,0.00025602,3]
[356112756,1741909937666,-512.79,0.00025602,3]
[356112757,1741909937676,-1603.3,0.00025602,3]
[356112758,1741909937685,-1399.34,0.00025602,3]
[356112759,1741909937695,-507.55,0.00025602,3]
[356112760,1741909937704,-171.54,0.00025602,3]
[356112761,1741909937714,-1162.37,0.00025602,3]
[356112762,1741909937723,-503.04,0.00025602,3]
[356112763,1741909937732,-637.46,0.00025602,3]
[356112764,1741909937741,-522.62,0.00025602,3]
[356112765,1741909937751,-1799.26,0.00025602,3]
[356112766,1741909937760,-500.0,0.00025602,3]
[356112767,1741909937769,-1038.47,0.00025602,3]
[356112768,1741909937779,-550.18,0.00025602,3]
[356112769,1741909937789,-1488.89,0.00025602,3]
[356112770,1741909937798,-509.79,0.00025602,3]
[356112771,1741909937807,-1529.19,0.00025602,3]
[356112772,1741909937816,-1146.19,0.00025602,3]
[356112773,1741909937826,-1616.56,0.00025602,3]
[356112774,1741909937835,-1230.07,0.00025602,3]
[356112775,1741909937845,-503.06,0.00025602,3]
[356112776,1741909937855,-828.77,0.00025602,3]
[356112777,1741909937864,-566.59,0.00025602,3]
[356112778,1741909937873,-766.89,0.00025602,3]
[356112779,1741909937883,-877.86,0.00025602,3]
[356112780,1741909937893,-1515.34,0.00025602,3]
[356112781,1741909937903,-974.37,0.00025602,3]
[356112782,1741909937912,-637.9,0.00025602,3]
[356112783,1741909937922,-878.52,0.00025602,3]
[356112784,1741909937931,-500.0,0.00025602,3]
[356112785,1741909937942,-581.67,0.00025602,3]
[356112786,1741909937952,-1951.21,0.00025602,3]
[356112787,1741909937962,-2023.2,0.00025602,3]
[356112788,1741909937971,-2022.67,0.00025602,3]
[356112789,1741909937980,-1071.52,0.00025602,3]
[356112790,1741909937990,-1319.48,0.00025602,3]
[356112791,1741909937999,-1318.79,0.00025602,3]
[356112792,1741909938009,-817.82,0.00025602,3]
[356112793,1741909938020,-1858.28,0.00025602,3]
[356112794,1741909938033,-1341.33,0.00025602,3]
[356112795,1741909938044,-1345.3,0.00025602,3]
[356112796,1741909938054,-1005.07,0.00025602,3]
[356112797,1741909938064,-2009.8,0.00025602,3]
[356112798,1741909938073,-525.51,0.00025602,3]
[356112799,1741909938082,-761.68,0.00025602,3]
[356112800,1741909938092,-1194.67,0.00025602,3]
[356112801,1741909938102,-1173.33,0.00025602,3]
[356112802,1741909938111,-3283.37,0.00025602,3]
[356112803,1741909938121,-647.14,0.00025602,3]
[356112804,1741909938130,-610.98,0.00025602,3]
[356112805,1741909938140,-1389.09,0.00025602,3]
[356112806,1741909938150,-558.82,0.00025602,3]
[356112807,1741909938159,-535.09,0.00025602,3]
[356112808,1741909938168,-1705.22,0.00025602,3]
[356112809,1741909938178,-792.15,0.00025602,3]
[356112810,1741909938187,-1894.67,0.00025602,3]
[356112811,1741909938197,-1930.42,0.00025602,3]
[356112812,1741909938207,-573.45,0.00025602,3]
[356112813,1741909938216,-4252.22,0.00025602,3]
[356112814,1741909938225,-1350.01,0.00025602,3]
[356112815,1741909938235,-957.24,0.00025602,3]
[356112816,1741909938245,-813.96,0.00025602,3]
[356112817,1741909938254,-500.0,0.00025602,3]
[356112818,1741909938264,-666.36,0.00025602,3]
[356112819,1741909938275,-1214.54,0.00025602,3]
[356112820,1741909938285,-659.78,0.00025602,3]
[356112821,1741909938295,-740.67,0.00025602,3]
[356112822,1741909938305,-1011.7,0.00025602,3]
[356112823,1741909938314,-1446.01,0.00025602,3]
[356112824,1741909938324,-509.81,0.00025602,3]
[356112825,1741909938333,-310.14,0.00025602,3]
[356112826,1741909938343,-506.61,0.00025602,3]
[356112827,1741909938353,-1624.15,0.00025602,3]
[356112828,1741909938362,-1714.12,0.00025602,3]
[356112829,1741909938372,-1453.97,0.00025602,3]
[356112830,1741909938381,-1542.57,0.00025602,3]
[356112831,1741909938391,-679.28,0.00025602,3]
[356112832,1741909938400,-511.82,0.00025602,3]
[356112833,1741909938410,-732.6,0.00025602,3]
[356112834,1741909938419,-509.45,0.00025602,3]
[356112835,1741909938428,-528.56,0.00025602,3]
[356112836,1741909938438,-803.83,0.00025602,3]
[356112837,1741909938447,-394.28713522,0.00025602,3]
[356112838,1741909938458,-286.24134977,0.00025602,3]
[356112839,1741909938470,-1621.13,0.00025602,3]
[356112840,1741909938480,-684.37,0.00025602,3]
[356112841,1741909938490,-500.0,0.00025602,3]
[356112842,1741909938500,-3776.5,0.00025602,3]
[356112843,1741909938510,-568.39,0.00025602,3]
[356112844,1741909938520,-1817.75,0.00025602,3]
[356112845,1741909938531,-1602.7,0.00025602,3]
[356112846,1741909938542,-500.0,0.00025602,3]
[356112847,1741909938553,-938.17,0.00025602,3]
[356112848,1741909938563,-728.56,0.00025602,3]
[356112849,1741909938572,-1921.94,0.00025602,3]
[356112850,1741909938582,-303.6,0.00025602,3]
[356112851,1741909938592,-515.11,0.00025602,3]
[356112852,1741909938601,-519.89,0.00025602,3]
[356112853,1741909938611,-547.45,0.00025602,3]
[356112854,1741909938621,-1144.38,0.00025602,3]
[356112855,1741909938631,-1019.22,0.00025602,3]
[356112856,1741909938640,-742.8,0.00025602,3]
[356112857,1741909938650,-501.97,0.00025602,3]
[356112858,1741909938660,-500.0,0.00025602,3]
[356112859,1741909938670,-947.29,0.00025602,3]
[356112860,1741909938680,-500.0,0.00025602,3]
[356112861,1741909938689,-1068.83,0.00025602,3]
[356112862,1741909938700,-1182.53,0.00025602,3]
[356112863,1741909938710,-1771.49,0.00025628,3]
[356112864,1741909938720,-1290.76,0.00025628,3]
[356112865,1741909938730,-559.65,0.00025628,3]
[356112866,1741909938741,-1582.8,0.00025628,3]
[356112867,1741909938751,-500.0,0.00025628,3]
[356112868,1741909938761,-628.37,0.00025628,3]
[356112869,1741909938771,-3568.36,0.00025628,3]
[356112870,1741909938783,-534.48,0.00025628,3]
[356112871,1741909938794,-1267.72,0.00025628,3]
[356112872,1741909938804,-1652.9,0.00025628,3]
[356112873,1741909938815,-2343.56,0.00025628,3]
[356112874,1741909938825,-534.22,0.00025628,3]
[356112875,1741909938835,-855.84,0.00025628,3]
[356112876,1741909938845,-2980.86,0.00025628,3]
[356112877,1741909938856,-1751.29,0.00025628,3]
[356112878,1741909938866,-521.41,0.00025628,3]
[356112879,1741909938876,-1817.04,0.00025628,3]
[356112880,1741909938886,-1529.79,0.00025628,3]
[356112881,1741909938897,-1531.97,0.00025628,3]
[356112882,1741909938907,-626.51,0.00025628,3]
[356112883,1741909938917,-1836.79,0.00025628,3]
[356112884,1741909938927,-647.08,0.00025628,3]
[356112885,1741909938937,-767.63,0.00025628,3]
[356112886,1741909938956,-2784.94,0.00025628,3]
[356112887,1741909938976,-972.39,0.00025628,3]